bitfinex-derivatives/quotes_ETHF0:USTF0_20241026
["timestamp","ask_amount","ask_price","bid_price","bid_amount"]
[1729979385638,1.30343028,2487.3,2487.2,4.93533342]
[1729979385836,2.14943028,2487.3,2487.2,4.93533342]
[1729979389455,2.14943028,2487.3,2487.2,4.93532173]
[1729979389750,2.14943028,2487.3,2487.2,4.30597373]
[1729979393157,2.14943028,2487.3,2487.2,2.34245622]
[1729979393349,2.14943028,2487.3,2487.2,4.30595929]
[1729979397151,2.14943028,2487.3,2487.2,4.30595621]
[1729979400846,2.14943028,2487.3,2487.2,4.30595407]
[1729979405659,2.13843028,2487.3,2487.2,4.30595407]
[1729979406957,0.835,2487.3,2487.2,4.30595407]
[1729979411962,0.835,2487.3,2487.2,4.30596723]
[1729979413457,0.4165,2487.4,2487.2,2.26718805]
[1729979413648,0.835,2487.3,2487.2,1.93993622]
[1729979413851,0.835,2487.3,2487.2,4.30595923]
[1729979414759,0.835,2487.3,2487.2,5.56460948]
[1729979414963,0.835,2487.3,2487.2,4.30595923]
[1729979415253,0.835,2487.3,2487.2,5.56460967]
[1729979415661,0.835,2487.3,2487.2,2.34245622]
[1729979415861,0.835,2487.3,2487.2,5.56461372]
[1729979416061,0.835,2487.3,2487.2,6.82326935]
[1729979417355,0.835,2487.3,2487.2,8.37555669]
[1729979417567,0.835,2487.3,2487.2,6.82326935]
[1729979417761,0.835,2487.3,2487.2,8.37555616]
[1729979418262,0.835,2487.3,2487.2,8.37556148]
[1729979418655,0.835,2487.3,2487.2,8.37557101]
[1729979418855,0.835,2487.3,2487.2,6.82326935]
[1729979419059,0.835,2487.3,2487.2,8.37557332]
[1729979419361,0.835,2487.3,2487.2,5.15341547]
[1729979419663,0.835,2487.3,2487.2,7.11692364]
[1729979423165,0.835,2487.3,2487.2,7.1169193]
[1729979423360,0.835,2487.3,2487.2,7.1714821]
[1729979423562,3.2078,2487.8,2487.7,0.40244]
[1729979423866,1.30343028,2488.0,2487.9,0.40241]
[1729979424061,1.30343028,2488.0,2487.9,3.63771487]
[1729979424268,0.835,2488.3,2488.2,0.40236]
[1729979424460,2.13843028,2488.3,2488.2,0.52819521]
[1729979425081,1.30343028,2488.3,2488.2,0.52819521]
[1729979425365,2.13843028,2488.3,2488.2,0.52819521]
[1729979426760,2.13843028,2488.3,2488.2,0.40236]
[1729979426966,2.13843028,2488.3,2488.2,0.52818562]
[1729979427364,2.13843028,2488.3,2488.2,0.40236]
[1729979433872,2.13443028,2488.3,2488.2,0.40236]
[1729979445487,1.30343028,2488.3,2488.2,0.40236]
[1729979445784,2.13443028,2488.3,2488.2,0.40236]
[1729979446478,2.53677028,2488.3,2488.2,0.40236]
[1729979446880,1.70577028,2488.3,2488.2,0.40236]
[1729979447079,2.53677028,2488.3,2488.2,0.40236]
[1729979449592,2.13443028,2488.3,2488.2,0.40236]
[1729979449793,2.53677028,2488.3,2488.2,0.40236]
[1729979461494,0.831,2488.3,2488.2,0.40236]
[1729979461996,2.13443028,2488.3,2488.2,0.40236]
[1729979462606,2.13443028,2488.3,2488.2,0.52818133]
[1729979462796,2.13443028,2488.3,2488.2,0.40236]
[1729979463296,2.13443028,2488.3,2488.2,0.5281819]
[1729979465993,1.30343028,2488.3,2488.2,0.5281819]
[1729979467201,1.30343028,2488.3,2488.2,0.72949735]
[1729979467699,1.30343028,2488.3,2488.2,0.5281819]
[1729979468299,1.30343028,2488.3,2488.2,0.52818214]
[1729979469495,1.30343028,2488.3,2488.2,0.7294957]
[1729979470794,1.23032,2488.5,2488.4,0.40231]
[1729979470994,2.53375028,2488.5,2488.4,0.52813214]
[1729979471600,1.23032,2488.5,2488.4,0.52813214]
[1729979471990,1.23032,2488.5,2488.4,0.40231]
[1729979471991,2.53375028,2488.5,2488.4,0.40231]
[1729979472195,2.53375028,2488.5,2488.4,0.52813099]
[1729979473599,2.53375028,2488.5,2488.4,0.40231]
[1729979474402,1.70575028,2488.5,2488.4,0.40231]
[1729979474597,2.53375028,2488.5,2488.4,0.40231]
[1729979474998,2.53375028,2488.5,2488.4,0.52813083]
[1729979475404,2.53375028,2488.5,2488.3,1.68453]
[1729979475405,0.40233,2488.4,2488.3,1.68453]
[1729979475604,0.40233,2488.4,2488.3,2.01167042]
[1729979475801,2.53374028,2488.5,2488.4,0.40233]
[1729979475999,2.53374028,2488.5,2488.4,0.52815317]
[1729979479905,2.53374028,2488.5,2488.4,0.52815161]
[1729979482003,1.23031,2488.5,2488.4,0.52815161]
[1729979483313,1.23031,2488.5,2488.4,0.12582161]
[1729979486114,4.8464,2488.5,2488.0,3.2078]
[1729979486313,0.40244,2487.8,2487.6,0.40245]
[1729979486518,1.30343028,2487.7,2487.5,0.40246]
[1729979486719,1.70588028,2487.7,2487.5,0.40246]
[1729979486905,5.72588028,2487.7,2487.5,0.40246]
[1729979487309,1.70588028,2487.7,2487.5,0.40246]
[1729979487817,0.40245,2487.6,2487.5,0.40246]
[1729979495319,1.30343028,2487.7,2487.3,4.5418]
[1729979495518,1.30343028,2487.7,2487.6,0.40245]
[1729979495519,1.70588028,2487.7,2487.6,0.40245]
[1729979498326,1.70588028,2487.7,2487.6,0.52830632]
[1729979498519,1.70588028,2487.7,2487.6,0.40245]
[1729979501624,0.40245,2487.7,2487.6,0.40245]
[1729979501824,1.70588028,2487.7,2487.6,0.40245]
[1729979522239,1.70588028,2487.7,2487.6,0.52830654]
[1729979525236,1.70588028,2487.7,2487.6,0.40245]
[1729979525440,1.70588028,2487.7,2487.6,0.52830646]
[1729979528337,1.70588028,2487.7,2487.6,0.72967695]
[1729979528545,1.70588028,2487.7,2487.6,0.52830646]
[1729979529153,1.70588028,2487.7,2487.6,0.72967639]
[1729979531233,1.70588028,2487.7,2487.6,1.35895982]
[1729979532637,1.70588028,2487.7,2487.6,1.64425]
[1729979532839,1.70588028,2487.7,2487.6,2.60076013]
[1729979540246,1.70588028,2487.7,2487.6,2.27353299]
[1729979540544,1.70588028,2487.7,2487.6,2.60076213]
[1729979544158,1.70588028,2487.7,2487.6,2.60076085]
[1729979545448,2.53188028,2487.7,2487.6,2.60076085]
[1729979550252,1.22845,2487.7,2487.6,2.60076085]
[1729979551558,1.22845,2487.7,2487.6,1.64425]
[1729979551859,1.22845,2487.7,2487.6,2.60076134]
[1729979555260,1.22845,2487.7,2487.6,2.27353378]
[1729979555562,1.22845,2487.7,2487.6,2.60075897]
[1729979557759,0.40245,2487.7,2487.6,2.60075897]
[1729979558059,1.22845,2487.7,2487.6,2.60075897]
[1729979558958,1.22845,2487.7,2487.6,1.64425]
[1729979559158,1.22845,2487.7,2487.6,2.60077232]
[1729979562759,1.22845,2487.7,2487.6,2.27354519]
[1729979563061,1.22845,2487.7,2487.6,1.37742868]
[1729979563266,5.73968028,2487.7,2487.6,0.95652868]
[1729979563563,5.73968028,2487.7,2487.4,0.4361]
[1729979563757,1.70590028,2487.5,2487.4,0.4361]
[1729979563954,1.70590028,2487.5,2487.4,1.26682056]
[1729979564957,1.70590028,2487.5,2487.4,0.76335422]
[1729979565357,1.70590028,2487.5,2487.4,0.96474209]
[1729979565766,1.70590028,2487.5,2487.4,1.39270548]
[1729979566260,1.70590028,2487.5,2487.4,1.06544468]
[1729979566462,1.70590028,2487.5,2487.4,0.76335922]
[1729979573158,1.70590028,2487.5,2487.4,0.56196893]
[1729979573670,1.70590028,2487.5,2487.4,0.4361]
[1729979573865,1.70590028,2487.5,2487.4,0.5619686]
[1729979576185,1.70590028,2487.5,2487.4,0.56196911]
[1729979577480,1.70590028,2487.5,2487.4,0.4361]
[1729979577680,1.70590028,2487.5,2487.4,0.5619686]
[1729979578482,1.70590028,2487.5,2487.4,0.1258686]
[1729979581086,0.4025,2487.4,2487.2,0.40251]
[1729979581386,1.30343028,2487.3,2487.2,0.40251]
[1729979581576,1.30343028,2487.3,2487.2,0.72979543]
[1729979582687,1.70593028,2487.3,2487.2,0.72979543]
[1729979585183,1.70593028,2487.3,2487.2,0.72978225]
[1729979589479,1.70593028,2487.3,2487.2,2.03321253]
[1729979589480,0.826,2487.3,2487.2,2.03321253]
[1729979589682,1.2285,2487.3,2487.2,2.03321253]
[1729979589888,0.40248,2487.5,2487.4,0.40248]
[1729979590089,2.53191028,2487.5,2487.4,0.52835394]
[1729979590284,1.70588028,2487.6,2487.5,0.40246]
[1729979590485,2.53188028,2487.6,2487.5,0.40246]
[1729979591082,2.53188028,2487.6,2487.5,0.52832387]
[1729979591484,2.53188028,2487.6,2487.5,0.12586459]
[1729979591793,2.53188028,2487.6,2487.4,0.81597]
[1729979591988,2.53188028,2487.6,2487.5,0.12586471]
[1729979592692,2.53188028,2487.6,2487.5,0.12586464]
[1729979593690,2.53188028,2487.6,2487.5,0.52833464]
[1729979594185,2.53188028,2487.6,2487.5,0.12586464]
[1729979595992,2.53188028,2487.6,2487.5,0.55806464]
[1729979596190,2.53188028,2487.6,2487.5,0.55806371]
[1729979602095,2.12943028,2487.6,2487.5,0.55806371]
[1729979602294,2.12943028,2487.6,2487.5,0.96053371]
[1729979602491,2.12943028,2487.6,2487.5,0.55806371]
[1729979602696,2.53188028,2487.6,2487.5,0.55806371]
[1729979603193,2.53188028,2487.6,2487.5,0.99376371]
[1729979603595,2.53188028,2487.6,2487.5,0.8679]
[1729979603797,1.22845,2487.6,2487.5,0.99376421]
[1729979604000,2.53188028,2487.6,2487.5,0.99376421]
[1729979604293,1.30343028,2487.7,2487.5,0.99376421]
[1729979604498,1.70587028,2487.7,2487.6,0.52831421]
[1729979604693,1.70587028,2487.7,2487.6,0.12586421]
[1729979604893,1.30343028,2487.7,2487.6,4.54831421]
[1729979605097,3.2078,2488.0,2487.9,0.4024]
[1729979605301,3.2078,2488.0,2487.9,0.52826421]
[1729979605502,3.2078,2488.0,2487.9,4.54746421]
[1729979605802,3.2078,2488.0,2487.9,4.74880914]
[1729979606102,3.2078,2488.0,2487.9,4.74880879]
[1729979606394,1.30343028,2488.1,2488.0,0.40239]
[1729979606607,1.30343028,2488.1,2488.0,0.52825421]
[1729979606795,1.70580028,2488.1,2488.0,4.54745421]
[1729979607192,1.70580028,2488.1,2488.0,4.42159]
[1729979607388,1.70580028,2488.1,2488.0,4.54742575]
[1729979609608,1.70580028,2488.1,2488.0,0.52822575]
[1729979609796,1.70580028,2488.1,2488.0,4.54742575]
[1729979610593,1.70580028,2488.1,2487.9,1.71723028]
[1729979610594,3.2078,2488.5,2487.9,1.71723028]
[1729979610796,0.40235,2488.3,2488.2,0.40235]
[1729979610995,0.40237,2488.1,2488.0,0.40238]
[1729979611401,0.40237,2488.1,2488.0,4.42158]
[1729979612709,1.30343028,2488.2,2488.1,0.40237]
[1729979614108,1.70578028,2488.2,2488.1,0.40237]
[1729979619511,1.30343028,2488.2,2488.1,0.40237]
[1729979620012,1.70578028,2488.2,2488.1,0.40237]
[1729979623925,1.70578028,2488.2,2488.1,0.83517]
[1729979624805,0.40235,2488.3,2488.2,0.40234]
[1729979625009,0.40233,2488.4,2488.3,0.40234]
[1729979625202,1.70576028,2488.4,2488.3,0.40234]
[1729979627807,2.53176028,2488.4,2488.3,0.40234]
[1729979629111,1.22833,2488.4,2488.3,0.40234]
[1729979629311,2.53176028,2488.4,2488.3,0.40234]
[1729979633412,0.40233,2488.4,2488.3,0.40234]
[1729979633613,1.22831,2488.5,2488.4,0.40232]
[1729979633822,2.53174028,2488.5,2488.4,0.40232]
[1729979634023,2.12943028,2488.5,2488.1,1.73623028]
[1729979634315,0.40233,2488.4,2488.3,0.40233]
[1729979649628,0.40233,2488.4,2488.3,0.81963]
[1729979651226,0.40233,2488.4,2488.3,0.94545453]
[1729979651528,2.12943028,2488.5,2488.3,0.54312453]
[1729979651728,2.12943028,2488.5,2488.3,0.4173]
[1729979651924,2.53175028,2488.5,2488.4,0.40232]
[1729979652228,2.53175028,2488.5,2488.3,0.4173]
[1729979652229,2.12943028,2488.5,2488.3,0.4173]
[1729979652433,0.40232,2488.4,2488.3,0.81963]
[1729979652628,0.40232,2488.4,2488.3,0.94545293]
[1729979652829,0.826,2488.5,2488.4,0.40232]
[1729979653128,0.826,2488.5,2488.4,0.93613657]
[1729979657033,1.30343028,2488.6,2488.4,0.53381657]
[1729979657338,6.14931028,2488.7,2488.6,0.40229]
[1729979657528,3.2078,2489.0,2488.8,0.40226]
[1729979657724,1.30343028,2489.4,2488.8,2.66170737]
[1729979657928,1.30343028,2489.4,2488.8,3.66796066]
[1729979657929,1.70559028,2489.4,2488.8,3.66796066]
[1729979658131,1.30343028,2489.4,2488.8,4.12327436]
[1729979658328,2.12943028,2489.4,2488.8,3.06900737]
[1729979658640,2.53159028,2489.4,2488.8,3.06900737]
[1729979658834,2.53159028,2489.4,2488.8,7.08660737]
[1729979659431,1.70559028,2489.4,2488.8,7.08660737]
[1729979661136,1.70559028,2489.4,2488.8,6.45767854]
[1729979662846,1.30343028,2489.4,2488.8,6.45767854]
[1729979663341,5.73938028,2489.5,2488.8,6.45767854]
[1729979664241,4.43595,2489.5,2488.8,6.45767854]
[1729979664539,5.73938028,2489.5,2488.8,6.45767854]
[1729979665642,2.53158028,2489.5,2488.8,6.45767854]
[1729979665840,5.73938028,2489.5,2488.8,9.66547854]
[1729979666042,2.12943028,2489.5,2488.8,9.66547854]
[1729979666235,2.53157028,2489.5,2488.8,9.66547854]
[1729979666538,2.12943028,2489.5,2488.8,9.66538388]
[1729979666744,9.1964176,2488.9,2488.8,9.66538388]
[1729979666946,8.3388476,2488.9,2488.8,9.66538388]
[1729979667247,6.6723276,2488.9,2488.8,9.66538388]
[1729979668741,5.0142376,2488.9,2488.8,9.66538388]
[1729979668945,3.8241776,2488.9,2488.8,9.66538388]
[1729979669136,1.4921976,2488.9,2488.8,9.66538388]
[1729979669342,0.88856507,2488.9,2488.8,9.66538388]
[1729979669546,0.825,2489.6,2489.5,0.40214]
[1729979669840,1.51357911,2508.5,2489.5,1.30343028]
[1729979669841,4.12,2490.5,2489.5,1.30343028]
[1729979670043,2.07997,2490.0,2489.9,0.40208]
[1729979670444,5.2693,2490.0,2489.9,0.40208]
[1729979670847,1.2533,2490.0,2489.9,0.40208]
[1729979671349,1.2533,2490.0,2489.9,1.70551028]
[1729979671350,0.4283,2490.0,2489.9,1.70551028]
[1729979679346,0.4283,2490.0,2489.9,0.40208]
[1729979679744,0.4283,2490.0,2489.9,0.81248]
[1729979680343,0.825,2490.1,2489.9,0.4104]
[1729979680654,0.825,2490.1,2490.0,0.40206]
[1729979680950,1.22705,2490.1,2490.0,0.40206]
[1729979681743,0.4061,2490.3,2489.9,0.4104]
[1729979681952,1.63413,2490.3,2490.2,0.40203]
[1729979682953,5.65013,2490.3,2489.9,0.4104]
[1729979683247,1.63413,2490.3,2490.1,0.40204]
[1729979684351,1.2321,2490.3,2490.1,0.40204]
[1729979684549,0.40203,2490.2,2490.1,0.40204]
[1729979686245,0.80813,2490.3,2490.1,0.40204]
[1729979686444,1.63413,2490.3,2490.1,0.40204]
[1729979688849,1.63413,2490.3,2490.2,0.40203]
[1729979701353,1.63413,2490.3,2490.2,0.81223]
[1729979706658,1.22803,2490.3,2490.2,0.81223]
[1729979713063,1.22803,2490.3,2489.8,3.2078]
[1729979713064,6.14543028,2490.3,2489.8,3.2078]
[1729979713371,0.40215,2489.5,2489.4,0.40215]
[1729979713574,0.40215,2489.5,2489.4,0.60336332]
[1729979713575,1.22715,2489.5,2489.4,0.60336332]
[1729979713774,5.24395,2489.5,2489.4,0.60336332]
[1729979713982,5.24395,2489.5,2489.4,0.40215]
[1729979714173,5.24395,2489.5,2489.4,1.90680598]
[1729979714373,4.8418,2489.5,2489.4,1.90680598]
[1729979714970,5.24394,2489.5,2489.4,1.90680598]
[1729979715170,5.24394,2489.5,2489.4,1.70558028]
[1729979715976,4.8418,2489.5,2489.4,1.70558028]
[1729979718082,4.21303,2489.9,2489.4,1.70558028]
[1729979718083,3.2078,2490.2,2489.8,0.4021]
[1729979718267,0.40201,2490.4,2490.1,0.40205]
[1729979718466,0.825,2490.5,2490.2,2.20153028]
[1729979718672,0.825,2490.5,2490.4,0.402]
[1729979719074,0.825,2490.5,2490.2,2.20153028]
[1729979719277,0.825,2490.5,2490.4,0.402]
[1729979720380,1.22698,2490.5,2490.4,0.402]
[1729979720782,1.22698,2490.5,2490.3,1.70543028]
[1729979722382,1.22698,2490.5,2490.4,0.402]
[1729979722789,1.22698,2490.5,2490.3,1.70543028]
[1729979725281,0.402,2490.4,2490.3,1.70543028]
[1729979726183,1.22699,2490.5,2490.3,1.70543028]
[1729979731689,1.22699,2490.5,2490.3,0.402]
[1729979733494,1.22699,2490.5,2490.2,2.20153028]
[1729979733794,1.22699,2490.5,2490.4,0.402]
[1729979735288,1.22699,2490.5,2490.4,0.8113]
[1729979744797,0.40199,2490.5,2490.4,0.8113]
[1729979745100,1.23599,2490.5,2490.4,0.8113]
[1729979764310,1.23599,2490.5,2490.4,0.93702115]
[1729979767410,1.23599,2490.5,2490.4,0.8113]
[1729979767709,1.23599,2490.5,2490.4,0.93702063]
[1729979768412,1.23599,2490.5,2490.4,1.13817506]
[1729979771106,1.23599,2490.5,2490.4,1.1381722]
[1729979774813,1.23599,2490.5,2490.4,0.8113]
[1729979775021,1.23599,2490.5,2490.4,1.13816763]
[1729979775513,1.23599,2490.5,2490.4,0.93701832]
[1729979778519,1.23599,2490.5,2490.4,0.8113]
[1729979778715,1.23599,2490.5,2490.4,0.93701916]
[1729979781416,1.23599,2490.5,2490.4,0.53501916]
[1729979781619,1.23599,2490.5,2490.4,0.93701916]
[1729979782623,1.23599,2490.5,2490.4,1.13816929]
[1729979786335,3.2078,2490.8,2490.4,0.73616747]
[1729979786628,4.0328,2490.8,2490.7,1.70538028]
[1729979786827,4.0328,2490.8,2490.7,2.0322269]
[1729979787222,4.0328,2490.8,2490.7,1.83109854]
[1729979787633,3.60973,2490.8,2490.7,1.83109854]
[1729979787830,3.2078,2490.8,2490.7,1.83109854]
[1729979788433,3.60973,2490.8,2490.7,1.83109854]
[1729979788624,3.2078,2490.8,2490.7,1.83109854]
[1729979789226,1.22693,2490.9,2490.7,1.83109854]
[1729979789529,1.22693,2490.9,2490.8,1.74493028]
[1729979789726,4.43473,2490.9,2490.8,2.15453028]
[1729979790735,4.43473,2490.9,2490.8,2.55646028]
[1729979792434,0.825,2490.9,2490.8,2.55646028]
[1729979794125,1.22692,2490.9,2490.8,2.55646028]
[1729979797233,1.22692,2490.9,2490.8,2.15453028]
[1729979799537,0.825,2490.9,2490.8,2.15453028]
[1729979799744,1.22692,2490.9,2490.8,2.15453028]
[1729979799932,1.22692,2490.9,2490.8,2.55646028]
[1729979800132,1.22692,2490.9,2490.8,2.15453028]
[1729979801337,4.51123028,2491.2,2490.9,0.40192]
[1729979801338,3.60968,2491.2,2490.9,0.40192]
[1729979801532,3.60968,2491.2,2490.8,2.15453028]
[1729979801533,3.60968,2491.2,2491.1,1.30343028]
[1729979801731,3.60968,2491.2,2491.1,1.70532028]
[1729979802033,3.2078,2491.2,2491.1,2.14992028]
[1729979802534,1.22687,2491.2,2491.1,2.14992028]
[1729979803633,1.22687,2491.2,2491.1,1.74803028]
[1729979804134,1.22687,2491.2,2491.1,2.14992028]
[1729979823471,0.40187,2491.2,2491.1,2.14992028]
[1729979831558,1.22687,2491.3,2491.2,0.40186]
[1729979831766,1.22687,2491.3,2491.2,2.14559028]
[1729979832664,1.22687,2491.3,2491.2,1.74373028]
[1729979834869,1.22687,2491.3,2491.2,2.14560028]
[1729979837671,1.22687,2491.3,2491.2,1.74373028]
[1729979840777,0.825,2491.3,2491.0,2.13373028]
[1729979840967,0.40188,2491.2,2491.0,2.17503028]
[1729979841168,0.825,2491.3,2491.0,2.17503028]
[1729979841372,0.40189,2491.1,2491.0,2.57692028]
[1729979841572,0.825,2491.3,2491.0,2.70260387]
[1729979841871,0.825,2491.3,2491.0,2.57692028]
[1729979841872,0.40189,2491.1,2491.0,2.57692028]
[1729979842068,0.40189,2491.1,2491.0,2.70260395]
[1729979843474,0.40189,2491.1,2491.0,2.27420395]
[1729979845075,0.40189,2491.1,2491.0,2.14852028]
[1729979845276,0.40189,2491.1,2491.0,2.27420616]
[1729979845677,0.40189,2491.1,2491.0,1.87231616]
[1729979845877,0.40189,2491.1,2491.0,2.27421616]
[1729979848884,0.40189,2491.1,2491.0,2.14853028]
[1729979849186,0.40189,2491.1,2491.0,2.2742182]
[1729979850985,0.40189,2491.1,2491.0,1.8723182]
[1729979851186,0.40189,2491.1,2491.0,2.2742182]
[1729979851883,0.40189,2491.1,2491.0,2.14853028]
[1729979852272,0.40189,2491.1,2491.0,2.27421799]
[1729979852480,0.40189,2491.1,2491.0,2.14853028]
[1729979852681,0.40189,2491.1,2491.0,2.27421799]
[1729979852976,0.40189,2491.1,2491.0,2.14853028]
[1729979858178,0.40189,2491.1,2491.0,2.27421831]
[1729979859880,0.40189,2491.1,2491.0,2.14853028]
[1729979860188,0.40189,2491.1,2491.0,2.27421895]
[1729979863490,0.40189,2491.1,2491.0,2.14853028]
[1729979863686,0.40189,2491.1,2491.0,2.27421695]
[1729979863987,1.22689,2491.1,2491.0,2.27421695]
[1729979864988,1.22689,2491.1,2491.0,2.47531297]
[1729979865287,1.22689,2491.1,2491.0,2.27421695]
[1729979868392,1.22689,2491.1,2491.0,2.14853028]
[1729979869591,0.40189,2491.1,2491.0,2.14853028]
[1729979869799,0.40189,2491.1,2491.0,2.14852028]
[1729979872394,0.40189,2491.1,2491.0,2.27420422]
[1729979872598,0.40189,2491.1,2491.0,2.27420427]
[1729979873501,0.40189,2491.1,2491.0,2.47529877]
[1729979874706,0.40189,2491.1,2491.0,2.4752992]
[1729979878414,0.40189,2491.1,2491.0,2.47530071]
[1729979879713,0.40189,2491.1,2491.0,2.07341071]
[1729979880519,0.40189,2491.1,2491.0,2.47531071]
[1729979880718,0.40189,2491.1,2491.0,2.27421506]
[1729979881114,0.40189,2491.1,2491.0,1.87231506]
[1729979884714,0.40189,2491.1,2491.0,2.27421506]
[1729979886823,0.40189,2491.1,2491.0,1.87231506]
[1729979887913,1.22688,2491.2,2491.0,1.87231506]
[1729979888114,1.22688,2491.2,2491.1,1.87441506]
[1729979889322,1.22688,2491.2,2491.1,2.07550786]
[1729979889626,1.22688,2491.2,2491.1,1.87441506]
[1729979890017,1.22688,2491.2,2491.1,2.07550721]
[1729979890217,1.22688,2491.2,2491.1,1.87441506]
[1729979891020,1.22688,2491.2,2491.1,2.07550441]
[1729979891223,0.40188,2491.2,2491.1,1.87441506]
[1729979891422,1.22588,2491.2,2491.1,2.07550548]
[1729979894421,1.22588,2491.2,2491.1,2.48990548]
[1729979895727,1.22588,2491.2,2491.1,2.28881506]
[1729979901526,1.22588,2491.2,2491.1,2.69070506]
[1729979902628,1.22588,2491.2,2491.1,2.28881506]
[1729979902829,1.22588,2491.2,2491.1,2.48990734]
[1729979903024,1.22588,2491.2,2491.1,2.89179734]
[1729979904137,1.22588,2491.2,2491.1,2.89179679]
[1729979904730,1.22588,2491.2,2491.1,2.48990679]
[1729979905437,1.22588,2491.2,2491.1,2.89179679]
[1729979905640,1.22588,2491.2,2491.1,2.48990679]
[1729979914948,1.22588,2491.2,2491.1,2.89179679]
[1729979915546,1.22588,2491.2,2491.1,2.48990679]
[1729979915744,1.22588,2491.2,2491.1,2.89179679]
[1729979916146,0.824,2491.2,2491.1,2.89179679]
[1729979916448,1.22587,2491.2,2491.1,2.89179679]
[1729979917641,1.22587,2491.2,2491.1,2.48990679]
[1729979917842,1.22587,2491.2,2491.1,2.28881355]
[1729979918541,1.22587,2491.2,2491.1,2.16313028]
[1729979918746,1.22587,2491.2,2491.1,2.28881247]
[1729979919139,1.22587,2491.2,2491.1,2.69070247]
[1729979920641,1.22587,2491.2,2491.1,2.28881247]
[1729979920942,1.22587,2491.2,2491.1,2.69070247]
[1729979925245,1.22587,2491.2,2491.1,2.28881247]
[1729979925444,1.22587,2491.2,2491.1,0.98538219]
[1729979925751,1.22587,2491.2,2491.1,0.12568219]
[1729979926546,1.22587,2491.2,2491.1,1.42911247]
[1729979927548,0.40187,2491.2,2491.1,1.42911247]
[1729979927854,1.22587,2491.2,2491.1,1.42911247]
[1729979928452,1.22587,2491.2,2491.1,0.12568219]
[1729979928651,2.52930028,2491.2,2491.1,0.12568219]
[1729979929249,2.52930028,2491.2,2490.9,0.40191]
[1729979929250,0.4019,2491.0,2490.9,0.40191]
[1729979929447,0.4019,2491.0,2490.9,0.72870455]
[1729979929749,0.4019,2491.0,2490.9,0.40191]
[1729979930051,0.4019,2491.0,2490.9,0.72870478]
[1729979930653,0.4019,2491.0,2490.9,0.32679478]
[1729979931559,0.4019,2491.0,2490.9,0.1256903]
[1729979931747,0.4019,2491.0,2490.9,0.3267949]
[1729979931947,0.4019,2491.0,2490.9,2.03214518]
[1729979932149,0.4019,2491.0,2490.9,1.83104058]
[1729979932551,0.4019,2491.0,2490.9,1.30343028]
[1729979933647,0.4019,2491.0,2490.9,1.42912035]
[1729979934854,0.4019,2491.0,2490.9,1.83104035]
[1729979938457,0.4019,2491.0,2490.9,1.42912035]
[1729979938661,0.4019,2491.0,2490.9,0.12569007]
[1729979938852,0.4019,2491.0,2490.9,1.70535028]
[1729979940658,0.4019,2491.0,2490.9,1.30343028]
[1729979944659,0.40193,2490.9,2490.8,1.30343028]
[1729979950855,0.40193,2490.8,2490.7,1.2713]
[1729979951061,1.70536028,2490.8,2490.7,1.2713]
[1729979951466,1.70536028,2490.8,2490.7,0.4339]
[1729979951467,4.91316028,2490.8,2490.7,0.4339]
[1729979952056,0.40198,2490.5,2490.4,2.14633028]
[1729979952261,1.22598,2490.5,2490.4,2.14633028]
[1729979953558,0.824,2490.5,2490.4,1.30343028]
[1729979953766,1.22598,2490.5,2490.4,1.30343028]
[1729979954168,0.402,2490.4,2490.3,0.4242]
[1729979960770,1.70543028,2490.4,2490.3,0.4242]
[1729979981490,2.52943028,2490.4,2490.3,0.4242]
[1729980000811,0.824,2490.4,2490.3,0.4242]
[1729980000996,3.2078,2490.6,2490.4,0.40199]
[1729980000997,0.824,2490.5,2490.4,0.40199]
[1729980001196,0.402,2490.4,2490.3,0.82621]
[1729980001400,2.12743028,2490.5,2490.3,0.54992513]
[1729980001596,2.52942028,2490.5,2490.3,0.82621]
[1729980002005,1.70543028,2490.4,2490.3,0.4242]
[1729980002218,1.30343028,2490.4,2490.3,0.95193407]
[1729980002510,1.70543028,2490.4,2490.3,0.54992407]
[1729980002820,1.70543028,2490.4,2490.3,0.4242]
[1729980004304,2.52943028,2490.4,2490.3,0.4242]
[1729980006510,0.40201,2490.3,2490.2,0.8726]
[1729980006812,1.70544028,2490.3,2490.2,1.40036073]
[1729980007407,1.30343028,2490.3,2490.2,1.40036073]
[1729980009010,1.30343028,2490.3,2490.2,1.60152585]
[1729980009610,1.70544028,2490.3,2490.2,1.60152585]
[1729980010324,2.52944028,2490.3,2490.2,1.60152585]
[1729980013517,2.52944028,2490.3,2490.2,1.40036073]
[1729980014123,2.52944028,2490.3,2490.2,1.60152638]
[1729980015412,2.52944028,2490.3,2490.2,1.40035778]
[1729980015613,2.52944028,2490.3,2490.2,1.60152223]
[1729980018822,3.2078,2490.6,2490.2,1.19949223]
[1729980019130,9.046,2491.5,2490.6,0.40197]
[1729980019131,2.12743028,2490.7,2490.6,0.40197]
[1729980019318,1.30343028,2490.7,2490.6,0.12572429]
[1729980019512,1.70538028,2490.7,2490.6,0.12572429]
[1729980019818,0.40198,2490.5,2490.4,0.4409]
[1729980020016,2.52941028,2490.5,2490.4,0.56661968]
[1729980021022,2.52941028,2490.5,2490.4,0.96861968]
[1729980021223,2.52941028,2490.5,2490.4,0.56661968]
[1729980022620,2.52941028,2490.5,2490.4,0.56662017]
[1729980022824,2.52941028,2490.5,2490.4,0.96862017]
[1729980023925,2.52941028,2490.5,2490.4,0.56662017]
[1729980024129,2.52941028,2490.5,2490.4,0.4409]
[1729980026223,2.52941028,2490.5,2490.4,0.8429]
[1729980026917,2.52941028,2490.5,2490.4,0.4409]
[1729980028326,0.40201,2490.3,2490.2,0.4433]
[1729980028522,1.70544028,2490.3,2490.2,0.4433]
[1729980028727,0.40203,2490.2,2490.1,0.4163]
[1729980028924,1.70546028,2490.2,2490.1,0.97713253]
[1729980029821,1.70546028,2490.2,2490.1,1.2869]
[1729980031024,1.70546028,2490.2,2490.1,1.68895]
[1729980031225,1.70546028,2490.2,2490.1,1.81468357]
[1729980031634,1.70546028,2490.2,2490.1,1.41263357]
[1729980033125,1.70546028,2490.2,2490.1,1.81468357]
[1729980033423,1.70546028,2490.2,2490.1,1.68895]
[1729980033630,1.70546028,2490.2,2490.1,1.81468466]
[1729980035031,1.70546028,2490.2,2490.1,1.41263466]
[1729980039225,1.70546028,2490.2,2490.1,1.2869]
[1729980043328,2.52946028,2490.2,2490.1,1.2869]